[Event "1000GM Spring Break Schev-C 2024"]
[Site "San Jose"]
[Date "2024.04.03"]
[Round "2.3"]
[White "Jimenez Garcia, Emmanuel"]
[Black "Guo, Ethan"]
[Result "1/2-1/2"]
[ECO "A07"]
[WhiteElo "2421"]
[BlackElo "2211"]
[Annotator "RC"]
[PlyCount "59"]
[EventDate "2024.03.28"]
[EventType "schev"]
[EventCountry "USA"]
[SourceTitle "playchess.com"]
[Source "ChessBase"]
[SourceQuality "1"]
[TimeControl "5400+30"]

1. Nf3 {[%emt 0:00:27]} d5 {[%emt 0:00:39]} 2. g3 {[%emt 0:00:06]} Nd7 {[%emt 0:00:16]} 3. Bg2 {[%emt 0:02:39]} e5 {[%emt 0:00:43]} 4. d3 {[%emt 0:00:06]} Bd6 {[%emt 0:00:23]} 5. c4 {[%emt 0:01:25]} dxc4 {[%emt 0:02:19]} 6. dxc4 {[%emt 0:00:02]} Ngf6 {[%emt 0:00:27]} 7. Nc3 {[%emt 0:00:10]} O-O {[%emt 0:00:51]} 8. O-O {[%emt 0:00:10]} h6 {[%emt 0:02:17]} 9. a3 {[%emt 0:15:14]} a5 {[%emt 0:03:19]} 10. Rb1 {[%emt 0:07:59]} e4 {[%emt 0:07:05]} 11. Nd4 {[%emt 0:05:13]} Re8 {[%emt 0:02:02]} 12. b4 {[%emt 0:01:09]} axb4 {[%emt 0:00:36]} 13. axb4 {[%emt 0:00:02]} Be5 {[%emt 0:01:59]} 14. e3 {[%emt 0:08:25]} c5 {[%emt 0:01:52]} 15. Ndb5 {[%emt 0:10:06]} cxb4 {[%emt 0:02:00]} 16. Nxe4 {[%emt 0:00:34]} Nxe4 {[%emt 0:01:49]} 17. Bxe4 {[%emt 0:00:03]} Bxg3 {[%emt 0:02:49]} 18. fxg3 {[%emt 0:09:49]} Rxe4 {[%emt 0:00:44]} 19. Rxf7 {[%emt 0:09:32]} Kxf7 {[%emt 0:02:53]} 20. Nd6+ {[%emt 0:00:30]} Kf8 {[%emt 0:01:04]} 21. Nxe4 {[%emt 0:00:02]} Qe7 {[%emt 0:00:25]} 22. Nf2 {[%emt 0:13:42]} Kg8 {[%emt 0:03:16]} 23. Bd2 {[%emt 0:00:37]} Qf7 {[%emt 0:01:11]} 24. Bxb4 {[%emt 0:01:07]} Ra2 {[%emt 0:01:16]} 25. Be1 {[%emt 0:00:59]} Ne5 {[%emt 0:01:31]} 26. Ra1 {[%emt 0:05:14]} Rxa1 {[%emt 0:03:18]} 27. Qxa1 {[%emt 0:00:02]} Nf3+ {[%emt 0:00:10]} 28. Kg2 {[%emt 0:00:22]} Nxe1+ {[%emt 0:00:08]} 29. Qxe1 {[%emt 0:00:01]} Qxc4 {[%emt 0:00:10]} 30. Qd1 {[%emt 0:09:43]} 1/2-1/2

[Event "1000GM Spring Break Schev-C 2024"]
[Site "San Jose"]
[Date "2024.04.03"]
[Round "2.4"]
[White "Guo, Andrew"]
[Black "Arenas, David"]
[Result "1-0"]
[ECO "E08"]
[WhiteElo "2215"]
[BlackElo "2366"]
[Annotator "RC"]
[PlyCount "79"]
[EventDate "2024.03.28"]
[EventType "schev"]
[EventCountry "USA"]
[SourceTitle "playchess.com"]
[Source "ChessBase"]
[SourceQuality "1"]
[TimeControl "5400+30"]

1. d4 {[%emt 0:01:33]} Nf6 {[%emt 0:03:58]} 2. c4 {[%emt 0:00:08]} e6 {[%emt 0:00:07]} 3. Nf3 {[%emt 0:00:06]} d5 {[%emt 0:00:13]} 4. g3 {[%emt 0:00:05]} Bb4+ {[%emt 0:00:10]} 5. Bd2 {[%emt 0:00:03]} Be7 {[%emt 0:00:07]} 6. Bg2 {[%emt 0:00:10]} O-O {[%emt 0:00:07]} 7. Qc2 {[%emt 0:00:36]} c6 {[%emt 0:00:10]} 8. O-O {[%emt 0:00:06]} a5 {[%emt 0:00:35]} 9. Bf4 {[%emt 0:00:18]} Nbd7 {[%emt 0:00:46]} 10. Rd1 {[%emt 0:05:09]} Nh5 {[%emt 0:00:14]} 11. Bc1 {[%emt 0:00:11]} Nhf6 {[%emt 0:00:06]} 12. Nbd2 {[%emt 0:06:16]} b6 {[%emt 0:02:02]} 13. e4 {[%emt 0:00:46]} Ba6 {[%emt 0:02:37]} 14. b3 {[%emt 0:00:58]} Rc8 {[%emt 0:00:07]} 15. Bb2 {[%emt 0:02:40]} b5 {[%emt 0:09:09]} 16. e5 {[%emt 0:03:19]} Ne8 {[%emt 0:00:07]} 17. c5 {[%emt 0:00:04]} f5 {[%emt 0:04:47]} 18. exf6 {[%emt 0:01:04]} Bxf6 {[%emt 0:00:17]} 19. Re1 {[%emt 0:00:18]} Nc7 {[%emt 0:00:02]} 20. Nf1 {[%emt 0:03:15]} Re8 {[%emt 0:05:43]} 21. h4 {[%emt 0:02:07]} b4 {[%emt 0:01:59]} 22. N1h2 {[%emt 0:01:54]} a4 {[%emt 0:03:51]} 23. bxa4 {[%emt 0:01:15]} Ra8 {[%emt 0:00:47]} 24. Bh3 {[%emt 0:02:13]} Ra7 {[%emt 0:00:45]} 25. Ng4 {[%emt 0:01:00]} Qa8 {[%emt 0:00:13]} 26. Bc1 {[%emt 0:01:44]} Bc8 {[%emt 0:04:59]} 27. Bf4 {[%emt 0:01:08]} Bd8 {[%emt 0:00:09]} 28. Ng5 {[%emt 0:18:00]} Nf8 {[%emt 0:00:09]} 29. Bd6 {[%emt 0:00:14]} Re7 {[%emt 0:03:31]} 30. Bxe7 {[%emt 0:16:08]} Bxe7 {[%emt 0:00:01]} 31. Ne5 {[%emt 0:04:10]} Bxg5 {[%emt 0:05:24]} 32. hxg5 {[%emt 0:00:08]} Rxa4 {[%emt 0:00:01]} 33. Bf1 {[%emt 0:00:51]} Ra3 {[%emt 0:02:26]} 34. Reb1 {[%emt 0:01:38]} Na6 {[%emt 0:01:22]} 35. Rb3 {[%emt 0:04:28]} Ra5 {[%emt 0:00:05]} 36. Nd3 {[%emt 0:01:44]} Ng6 {[%emt 0:00:31]} 37. Nxb4 {[%emt 0:01:19]} Nxb4 {[%emt 0:00:02]} 38. Rxb4 {[%emt 0:00:05]} e5 {[%emt 0:00:10]} 39. dxe5 {[%emt 0:01:14]} Nxe5 {[%emt 0:00:07]} 40. Qe2 {[%emt 0:00:09]} 1-0

[Event "1000GM Spring Break Schev-C 2024"]
[Site "San Jose"]
[Date "2024.04.03"]
[Round "2.5"]
[White "Wang, Jeffery"]
[Black "Alarcon Bahamondez, Roberto Ignacio"]
[Result "1/2-1/2"]
[ECO "B06"]
[WhiteElo "2056"]
[BlackElo "2300"]
[Annotator "RC"]
[PlyCount "57"]
[EventDate "2024.03.28"]
[EventType "schev"]
[EventCountry "USA"]
[SourceTitle "playchess.com"]
[Source "ChessBase"]
[SourceQuality "1"]
[TimeControl "5400+30"]

1. e4 {[%emt 0:03:02]} g6 {[%emt 0:00:05]} 2. d4 {[%emt 0:00:39]} Bg7 {[%emt 0:00:35]} 3. Bc4 {[%emt 0:00:57]} a6 {[%emt 0:01:03]} 4. Nf3 {[%emt 0:01:26]} e6 {[%emt 0:00:51]} 5. O-O {[%emt 0:02:02]} d6 {[%emt 0:00:14]} 6. a4 {[%emt 0:03:03]} b6 {[%emt 0:01:12]} 7. Qe2 {[%emt 0:01:46]} Bb7 {[%emt 0:00:42]} 8. Rd1 {[%emt 0:04:00]} Ne7 {[%emt 0:03:17]} 9. Bf4 {[%emt 0:05:05]} O-O {[%emt 0:03:03]} 10. Ba2 {[%emt 0:01:37]} Nd7 {[%emt 0:02:12]} 11. Nbd2 {[%emt 0:02:40]} Nc6 {[%emt 0:08:19]} 12. c3 {[%emt 0:03:54]} h6 {[%emt 0:08:36]} 13. Nf1 {[%emt 0:04:17]} Qe7 {[%emt 0:07:45]} 14. Ne3 {[%emt 0:03:49]} Nf6 {[%emt 0:05:21]} 15. Nc4 {[%emt 0:04:39]} g5 {[%emt 0:13:34]} 16. Nxg5 {[%emt 0:13:41]} e5 {[%emt 0:12:48]} 17. dxe5 {[%emt 0:01:03]} dxe5 {[%emt 0:06:27]} 18. Bd2 {[%emt 0:02:20]} hxg5 {[%emt 0:01:37]} 19. Bxg5 {[%emt 0:00:12]} Rfd8 {[%emt 0:04:56]} 20. Qf3 {[%emt 0:14:47]} Rxd1+ {[%emt 0:02:42]} 21. Rxd1 {[%emt 0:00:05]} Rd8 {[%emt 0:00:27]} 22. Rxd8+ {[%emt 0:07:34]} Nxd8 {[%emt 0:01:56]} 23. Ne3 {[%emt 0:00:08]} Ne6 {[%emt 0:01:30]} 24. Nf5 {[%emt 0:00:33]} Qf8 {[%emt 0:02:24]} 25. Nh6+ {[%emt 0:05:39]} Bxh6 {[%emt 0:00:25]} 26. Bxf6 {[%emt 0:00:06]} Bg7 {[%emt 0:01:50]} 27. Qg4 {[%emt 0:01:13]} Kh8 {[%emt 0:03:12]} 28. Qh4+ {[%emt 0:14:13]} Kg8 29. Qg4 1/2-1/2

[Event "1000GM Spring Break Schev-C 2024"]
[Site "San Jose"]
[Date "2024.04.03"]
[Round "3.1"]
[White "Zhou, Ruoyu"]
[Black "Figueredo Losada, Leonel"]
[Result "1/2-1/2"]
[ECO "B84"]
[WhiteElo "2149"]
[BlackElo "2323"]
[Annotator "RC"]
[PlyCount "64"]
[EventDate "2024.03.28"]
[EventType "schev"]
[EventCountry "USA"]
[SourceTitle "playchess.com"]
[Source "ChessBase"]
[SourceQuality "1"]
[TimeControl "5400+30"]

1. e4 {[%emt 0:01:14]} c5 {[%emt 0:00:10]} 2. Nf3 {[%emt 0:00:10]} d6 {[%emt 0:00:03]} 3. d4 {[%emt 0:00:12]} cxd4 {[%emt 0:00:04]} 4. Nxd4 {[%emt 0:00:11]} Nf6 {[%emt 0:00:03]} 5. Nc3 {[%emt 0:00:23]} a6 {[%emt 0:00:04]} 6. Be3 {[%emt 0:00:16]} e6 {[%emt 0:00:07]} 7. a4 {[%emt 0:00:18]} Nc6 {[%emt 0:01:11]} 8. Be2 {[%emt 0:00:27]} Be7 {[%emt 0:00:18]} 9. O-O {[%emt 0:00:38]} O-O {[%emt 0:00:15]} 10. f4 {[%emt 0:00:30]} Qc7 {[%emt 0:00:10]} 11. Kh1 {[%emt 0:00:39]} Rb8 {[%emt 0:15:04]} 12. Bf3 {[%emt 0:00:47]} Bd7 {[%emt 0:00:24]} 13. g4 {[%emt 0:01:50]} Nxd4 {[%emt 0:03:15]} 14. Bxd4 {[%emt 0:01:18]} Bc6 {[%emt 0:04:16]} 15. g5 {[%emt 0:04:02]} Nd7 {[%emt 0:00:28]} 16. Bg2 {[%emt 0:02:34]} e5 {[%emt 0:11:51]} 17. Be3 {[%emt 0:01:56]} exf4 {[%emt 0:00:05]} 18. Bxf4 {[%emt 0:00:07]} Ne5 {[%emt 0:22:48]} 19. Qh5 {[%emt 0:02:35]} g6 20. Qh6 {[%emt 0:00:21]} Rfe8 21. Bxe5 {[%emt 0:00:43]} Bf8 {[%emt 0:01:02]} 22. Bxd6 {[%emt 0:05:13]} Qxd6 {[%emt 0:00:16]} 23. Qh4 {[%emt 0:00:17]} Qe5 {[%emt 0:08:20]} 24. Nd5 {[%emt 0:05:25]} Bxd5 {[%emt 0:13:23]} 25. exd5 {[%emt 0:00:02]} Rbd8 {[%emt 0:00:14]} 26. c3 {[%emt 0:05:44]} Re7 {[%emt 0:01:19]} 27. Rad1 {[%emt 0:01:41]} Bg7 {[%emt 0:01:01]} 28. Rd3 {[%emt 0:03:04]} Qe2 {[%emt 0:03:30]} 29. d6 {[%emt 1:02:23]} Red7 30. Rfd1 Qe5 31. Qg3 Qxg3 32. hxg3 Be5 1/2-1/2

[Event "1000GM Spring Break Schev-C 2024"]
[Site "San Jose"]
[Date "2024.04.03"]
[Round "3.2"]
[White "Talwalkar, Vedant"]
[Black "Jimenez Garcia, Emmanuel"]
[Result "1/2-1/2"]
[ECO "B67"]
[WhiteElo "2020"]
[BlackElo "2421"]
[Annotator "TA"]
[PlyCount "51"]
[EventDate "2024.03.28"]
[EventType "schev"]
[EventCountry "USA"]
[SourceTitle "playchess.com"]
[Source "ChessBase"]
[SourceQuality "1"]
[TimeControl "5400+30"]

{[%evp 19,51,22,32,-4,89,0,-15,-53,10,21,47,41,67,16,24,26,20,0,9,-11,22,8,12,14,8,9,35,38,21,0,0,0,0,0]} 1. e4 {[%emt 0:03:05]} c5 {[%emt 0:00:12]} 2. Nf3 {[%emt 0:00:24]} d6 {[%emt 0:00:06]} 3. d4 {[%emt 0:00:04]} cxd4 {[%emt 0:00:04]} 4. Nxd4 {[%emt 0:00:07]} Nf6 {[%emt 0:00:06]} 5. Nc3 {[%emt 0:00:07]} Nc6 {[%emt 1:32:32]} 6. Bg5 {[%emt 1:29:43]} e6 {[%emt 0:00:30]} 7. Qd2 {[%emt 0:00:00]} a6 {[%emt 0:00:30]} 8. O-O-O {[%emt 0:00:00]} Bd7 {[%emt 0:00:30]} 9. f4 {[%emt 0:01:30]} b5 {[%emt 0:00:30]} 10. Nxc6 {[%emt 0:00:00]} Bxc6 {[%emt 0:00:30]} 11. Qd4 {[%emt 0:01:00]} h6 {[%emt 0:00:30] [#]} (11... Be7 $11) 12. Bh4 {[%emt 0:00:30]} (12. Bxf6 $1 $16 gxf6 13. f5) 12... Be7 $11 {[%emt 0:00:30]} 13. Be2 {[%emt 0:00:30]} Qc7 {[%emt 0:00:30]} ({Better is} 13... O-O $15) 14. Bxf6 {[%emt 0:00:30]} gxf6 {[%emt 0:00:30]} 15. f5 {[%emt 0:00:30]} Qa7 {[%emt 0:00:30]} 16. Bh5 {[%emt 0:00:30] White has more active pieces.} (16. fxe6 $14 fxe6 17. Qd3) 16... Qxd4 {[%emt 0:00:00]} 17. Rxd4 {[%emt 0:00:30]} Kf8 {[%emt 0:01:00][%cal Be8f8,Bf8f7,Bf7e7,Be7d7][%mdl 32]} 18. Bg4 {[%emt 0:00:30]} Rg8 {[%emt 0:00:00]} 19. Bh3 {[%emt 0:00:30]} Bd7 {[%emt 0:01:00]} 20. fxe6 {[%emt 0:00:30]} fxe6 {[%emt 0:00:30]} 21. Nd5 {[%emt 0:00:00]} Bd8 {[%emt 0:00:00] Prevents Nb6} 22. Rf1 {[%emt 0:00:00]} Kf7 {[%emt 0:00:00] [#]} 23. Nxf6 $1 {[%emt 0:00:00]} Bxf6 {[%emt 0:00:00]} 24. Rxd6 {[%emt 0:00:00] The position is equal.} (24. e5 $5 Rg6 25. Rd3 $14 (25. exf6 d5 $11) (25. Rxf6+ Rxf6 26. exf6 d5 $14)) 24... Ke7 {[%emt 0:00:00]} 25. Rxd7+ $1 {[%emt 0:00:00]} Kxd7 {[%emt 0:00:00]} 26. Rxf6 {[%emt 0:00:00] Weighted Error Value: White=0.23 (precise) /Black=0.27 (precise) .  Mistake:       	White=2     	Black=2      Inaccurate:     	White=1     	Black=4      OK:         	White=4     	Black=5      Best:        	White=1     	Black=1      Strong:       	White=1     	---        Brilliant:      	White=1     	---} 1/2-1/2

[Event "1000GM Spring Break Schev-C 2024"]
[Site "San Jose"]
[Date "2024.04.03"]
[Round "3.3"]
[White "Arenas, David"]
[Black "Guo, Ethan"]
[Result "1-0"]
[ECO "B50"]
[WhiteElo "2366"]
[BlackElo "2211"]
[Annotator "RC"]
[PlyCount "61"]
[EventDate "2024.03.28"]
[EventType "schev"]
[EventCountry "USA"]
[SourceTitle "playchess.com"]
[Source "ChessBase"]
[SourceQuality "1"]
[TimeControl "5400+30"]

1. e4 c5 2. Nf3 d6 3. Bc4 Nf6 4. d3 e6 5. Bb3 b5 6. c3 Be7 7. O-O O-O 8. Re1 a5 9. a4 b4 10. d4 Bb7 11. Nbd2 d5 12. e5 Ne4 13. cxb4 c4 14. Bc2 Nxd2 15. Nxd2 axb4 16. b3 {[%emt 0:08:00]} Nc6 {[%emt 0:08:00]} 17. Qg4 {[%emt 0:00:30]} Re8 {[%emt 0:00:30]} 18. Re3 {[%emt 0:00:30]} g6 {[%emt 0:00:30]} 19. Rh3 {[%emt 0:00:30]} Rc8 {[%emt 0:00:30]} 20. Nf3 {[%emt 0:00:30]} cxb3 {[%emt 0:00:30]} 21. Bxg6 {[%emt 0:00:30]} hxg6 {[%emt 0:00:30]} 22. Ng5 {[%emt 0:00:30]} Nxe5 {[%emt 0:00:30]} 23. Qh4 {[%emt 0:00:30]} Bf6 {[%emt 0:00:30]} 24. dxe5 {[%emt 0:00:30]} Bg7 {[%emt 0:00:30]} 25. Qh7+ {[%emt 0:00:30]} Kf8 {[%emt 0:00:30]} 26. Nxf7 {[%emt 0:00:30]} Qc7 {[%emt 0:00:30]} 27. Bh6 {[%emt 0:00:30]} Bxh6 {[%emt 0:00:30]} 28. Qxh6+ {[%emt 0:00:30]} Ke7 {[%emt 0:00:30]} 29. Nd6 {[%emt 0:00:30]} b2 {[%emt 0:00:30]} 30. Qg5+ {[%emt 0:00:30]} Kd7 {[%emt 0:00:30]} 31. Rh7+ {[%emt 0:00:30]} 1-0

[Event "1000GM Spring Break Schev-C 2024"]
[Site "San Jose"]
[Date "2024.04.03"]
[Round "3.4"]
[White "Alarcon Bahamondez, Roberto Ignacio"]
[Black "Guo, Andrew"]
[Result "1/2-1/2"]
[ECO "A36"]
[WhiteElo "2300"]
[BlackElo "2215"]
[Annotator "RC"]
[PlyCount "51"]
[EventDate "2024.03.28"]
[EventType "schev"]
[EventCountry "USA"]
[SourceTitle "playchess.com"]
[Source "ChessBase"]
[SourceQuality "1"]
[TimeControl "5400+30"]

1. c4 {[%emt 1:31:00]} g6 {[%emt 0:03:15]} 2. Nc3 {[%emt 0:00:00]} Bg7 {[%emt 0:00:05]} 3. g3 {[%emt 0:00:00]} c5 {[%emt 0:00:14]} 4. Bg2 {[%emt 0:00:00]} Nc6 {[%emt 0:00:04]} 5. e3 {[%emt 0:00:00]} d6 {[%emt 0:03:37]} 6. Nge2 {[%emt 0:00:00]} Bf5 {[%emt 0:01:55]} 7. d3 {[%emt 0:00:00]} Qc8 {[%emt 0:01:08]} 8. h3 {[%emt 0:00:00]} Nf6 {[%emt 0:01:29]} 9. g4 {[%emt 0:00:00]} Bd7 {[%emt 0:04:53]} 10. d4 {[%emt 0:00:00]} cxd4 {[%emt 0:03:07]} 11. exd4 {[%emt 0:00:00]} O-O {[%emt 0:00:15]} 12. b3 {[%emt 0:00:00]} h5 {[%emt 0:01:51]} 13. g5 {[%emt 0:00:00]} Ne8 {[%emt 0:00:44]} 14. Be3 {[%emt 0:00:00]} Bf5 {[%emt 0:01:28]} 15. Qd2 {[%emt 0:00:00]} Nc7 {[%emt 0:01:21]} 16. Rc1 {[%emt 0:00:00]} Re8 {[%emt 0:03:15]} 17. Nd5 {[%emt 0:00:00]} e5 {[%emt 0:04:48]} 18. O-O {[%emt 0:00:00]} exd4 {[%emt 0:33:45]} 19. Nxd4 {[%emt 0:00:00]} Nxd4 {[%emt 0:01:57]} 20. Bxd4 {[%emt 0:00:00]} Bxd4 {[%emt 0:00:08]} 21. Qxd4 {[%emt 0:00:00]} Nxd5 {[%emt 0:01:04]} 22. Bxd5 {[%emt 0:00:00]} Bxh3 {[%emt 0:02:12]} 23. Bxf7+ {[%emt 0:00:00]} Kxf7 {[%emt 0:00:16]} 24. Qf6+ {[%emt 0:00:00]} Kg8 {[%emt 0:00:03]} 25. Qxg6+ {[%emt 0:00:00]} Kh8 {[%emt 0:00:05]} 26. Qh6+ {[%emt 0:00:00]} 1/2-1/2

[Event "1000GM Spring Break Schev-C 2024"]
[Site "San Jose"]
[Date "2024.04.03"]
[Round "3.5"]
[White "Wang, Jeffery"]
[Black "Zuluaga Mancilla, Cesar"]
[Result "0-1"]
[ECO "B41"]
[WhiteElo "2056"]
[BlackElo "2206"]
[Annotator "RC"]
[PlyCount "102"]
[EventDate "2024.03.28"]
[EventType "schev"]
[EventCountry "USA"]
[SourceTitle "playchess.com"]
[Source "ChessBase"]
[SourceQuality "1"]
[TimeControl "5400+30"]

1. e4 {[%emt 0:01:02]} c5 {[%emt 0:06:18]} 2. Nf3 {[%emt 0:00:12]} e6 {[%emt 0:00:36]} 3. d4 {[%emt 0:00:07]} cxd4 {[%emt 0:00:05]} 4. Nxd4 {[%emt 0:00:07]} a6 {[%emt 0:00:04]} 5. c4 {[%emt 0:00:12]} Nf6 {[%emt 0:01:38]} 6. Nc3 {[%emt 0:00:20]} Qc7 {[%emt 0:01:13]} 7. a3 {[%emt 0:00:32]} b6 {[%emt 0:00:35]} 8. Be3 {[%emt 0:01:55]} d6 {[%emt 0:00:02]} 9. Be2 {[%emt 0:00:35]} Bb7 {[%emt 0:00:09]} 10. f3 {[%emt 0:00:31]} Nbd7 {[%emt 0:00:09]} 11. Rc1 {[%emt 0:01:06]} Rc8 {[%emt 0:02:03]} 12. O-O {[%emt 0:01:44]} Be7 {[%emt 0:00:09]} 13. Qd2 {[%emt 0:02:34]} O-O {[%emt 0:00:11]} 14. b4 {[%emt 0:01:40]} Qb8 {[%emt 0:00:29]} 15. Rfd1 {[%emt 0:02:52]} Rfe8 {[%emt 0:02:57]} 16. Bf1 {[%emt 0:03:31]} Bd8 {[%emt 0:04:51]} 17. Qf2 {[%emt 0:07:03]} Bc7 {[%emt 0:01:58]} 18. h3 {[%emt 0:02:27]} h6 {[%emt 0:05:37]} 19. Kh1 {[%emt 0:03:27]} Kh7 {[%emt 0:16:05]} 20. Nb3 {[%emt 0:07:58]} Rg8 {[%emt 0:02:56]} 21. Qc2 {[%emt 0:04:09]} Kh8 {[%emt 0:02:53]} 22. Qd2 {[%emt 0:03:14]} Rcd8 {[%emt 0:10:26]} 23. Bd4 {[%emt 0:04:18]} Rge8 {[%emt 0:07:24]} 24. Na4 {[%emt 0:04:46]} Bc6 {[%emt 0:11:44]} 25. Nb2 {[%emt 0:04:00]} Ba8 {[%emt 0:00:22]} 26. Nd3 {[%emt 0:06:07]} Kh7 {[%emt 0:07:50]} 27. Ba1 {[%emt 0:06:28]} Ne5 {[%emt 0:01:37]} 28. Nxe5 {[%emt 0:02:08]} dxe5 {[%emt 0:00:02]} 29. Qf2 {[%emt 0:00:37]} Nh5 {[%emt 0:01:39]} 30. a4 {[%emt 0:03:21]} f5 {[%emt 0:04:28]} 31. exf5 {[%emt 0:09:06]} exf5 {[%emt 0:00:03]} 32. Bd3 {[%emt 0:00:31]} e4 {[%emt 0:00:31]} 33. fxe4 {[%emt 0:01:14]} Ng3+ {[%emt 0:00:02]} 34. Kg1 {[%emt 0:00:15]} fxe4 {[%emt 0:01:24]} 35. Bb1 {[%emt 0:02:00]} Bf4 {[%emt 0:00:22]} 36. Rxd8 {[%emt 0:01:38]} Qxd8 {[%emt 0:00:30]} 37. Re1 {[%emt 0:00:28]} Rf8 {[%emt 0:00:44]} 38. Nd4 {[%emt 0:03:02]} Qe7 {[%emt 0:00:11]} 39. Ne2 {[%emt 0:00:45]} Be5 {[%emt 0:01:39]} 40. Qxb6 {[%emt 0:02:44]} Nxe2+ {[%emt 0:02:08]} 41. Rxe2 {[%emt 0:00:04]} Bxa1 {[%emt 0:00:07]} 42. Qe3 {[%emt 0:00:50]} Qxb4 {[%emt 0:00:47]} 43. Bxe4+ {[%emt 0:00:04]} Bxe4 {[%emt 0:00:08]} 44. Qxe4+ {[%emt 0:00:03]} Kh8 {[%emt 0:00:12]} 45. Qc6 {[%emt 0:00:19]} Qb1+ {[%emt 0:00:55]} 46. Kh2 {[%emt 0:00:04]} Qf5 {[%emt 0:00:30]} 47. Qd6 {[%emt 0:01:11]} Qf4+ {[%emt 0:01:01]} 48. Qxf4 {[%emt 0:00:04]} Rxf4 {[%emt 0:00:05]} 49. Re6 {[%emt 0:00:50]} a5 {[%emt 0:00:12]} 50. Rc6 {[%emt 0:00:28]} Be5 {[%emt 0:00:51]} 51. Kg1 {[%emt 0:00:26]} Kh7 {[%emt 0:07:08]} 0-1